bitfinex-derivatives/quotes_ETHF0:USTF0_20250326
["timestamp","ask_amount","ask_price","bid_price","bid_amount"]
[1743017789829,1.00166,1996.5,1996.4,1.3156]
[1743017795433,1.00166,1996.5,1996.4,2.31728]
[1743017795628,1.311,1996.6,1996.4,2.31728]
[1743017796132,1.00163,1996.5,1996.4,1.3156]
[1743017796642,1.00163,1996.5,1996.4,42.1156]
[1743017797536,1.00163,1996.5,1996.4,1.3156]
[1743017798635,1.00163,1996.5,1996.4,2.31728]
[1743017798840,2.31261,1996.6,1996.4,2.31728]
[1743017799143,1.311,1996.6,1996.5,5.57163]
[1743017799348,0.00752125,1997.1,1996.9,1.00141]
[1743017799536,1.3335,1997.0,1996.9,1.00141]
[1743017799736,1.00138,1997.0,1996.9,1.00141]
[1743017799952,2.34237125,1997.1,1997.0,1.00138]
[1743017800245,0.00752125,1997.1,1997.0,4.20918]
[1743017801739,1.00885125,1997.1,1997.0,4.20918]
[1743017801939,0.00752125,1997.1,1997.0,4.20918]
[1743017802748,1.00885125,1997.1,1997.0,4.20918]
[1743017802949,0.00752125,1997.1,1997.0,4.20918]
[1743017803849,0.00752125,1997.1,1997.0,4.91438]
[1743017807047,2.4251,1997.6,1997.5,1.00113]
[1743017807757,1.424,1997.6,1997.5,1.00113]
[1743017807942,1.00101,1997.8,1997.7,1.00103]
[1743017808158,0.00752125,1997.7,1997.6,1.00108]
[1743017811252,0.00752125,1997.7,1997.6,2.36158]
[1743017811458,1.00855125,1997.7,1997.6,2.36158]
[1743017811646,1.40712125,1997.7,1997.6,2.36158]
[1743017816244,0.00752125,1997.7,1997.6,2.36158]
[1743017817750,0.00752125,1997.7,1997.6,5.56938]
[1743017818158,0.00752125,1997.7,1997.6,6.23148]
[1743017819261,1.31052125,1997.7,1997.6,6.23148]
[1743017825658,2.31155125,1997.7,1997.6,6.23148]
[1743017825858,2.02822125,1997.7,1997.6,6.23148]
[1743017826256,0.00752125,1997.7,1997.6,6.23148]
[1743017826560,3.01958,1998.1,1998.0,1.00083]
[1743017827368,3.01958,1998.1,1998.0,4.20863]
[1743017827557,3.01958,1998.1,1998.0,4.89593]
[1743017828063,0.719,1998.4,1998.3,1.00073]
[1743017828267,1.71238,1998.4,1998.3,1.00073]
[1743017828764,1.71238,1998.4,1998.3,2.43813]
[1743017828970,0.7117,1998.4,1998.3,2.43813]
[1743017829666,3.09848,1998.4,1998.3,2.43813]
[1743017829866,2.0978,1998.4,1998.3,2.43813]
[1743017830873,3.09848,1998.4,1998.3,2.43813]
[1743017831166,1.00073,1998.3,1998.2,4.20856]
[1743017831359,2.38683,1998.3,1998.2,4.20856]
[1743017831755,2.38683,1998.3,1998.2,5.51406]
[1743017832367,0.7117,1998.4,1998.2,5.51406]
[1743017832368,0.7117,1998.4,1998.3,1.00073]
[1743017832559,0.7117,1998.4,1998.3,2.34143]
[1743017833070,2.0885,1998.4,1998.3,2.34143]
[1743017834662,1.3768,1998.4,1998.3,2.34143]
[1743017835164,1.00061,1998.6,1998.5,1.00063]
[1743017835359,1.3211,1998.6,1998.5,1.00063]
[1743017835868,1.3211,1998.6,1998.5,2.31143]
[1743017838975,0.6978,1998.7,1998.6,1.00058]
[1743017839166,1.69833,1998.7,1998.6,5.60238]
[1743017839369,3.11733,1998.7,1998.6,5.60238]
[1743017840075,1.419,1998.7,1998.6,5.60238]
[1743017840777,2.50082,1999.1,1998.6,4.6018]
[1743017841075,1.00053,1998.7,1998.6,4.6018]
[1743017841278,1.00058,1998.6,1998.5,4.45061]
[1743017841471,1.00058,1998.6,1998.5,1.00061]
[1743017842370,2.37916,1998.7,1998.6,1.00058]
[1743017842563,1.00056,1998.7,1998.6,4.20838]
[1743017843365,0.6995,1998.8,1998.7,1.00053]
[1743017843571,1.00035,1999.1,1999.0,1.00032]
[1743017843771,1.67695,1999.1,1999.0,1.00032]
[1743017844269,1.67695,1999.1,1999.0,2.42952]
[1743017845473,1.00038,1999.0,1998.9,4.20819]
[1743017845685,1.00048,1998.8,1998.7,3.2078]
[1743017845865,1.00053,1998.7,1998.6,2.41403]
[1743017846064,1.66663,1998.7,1998.6,5.62183]
[1743017846279,1.00048,1998.9,1998.8,1.00045]
[1743017846583,1.00048,1998.8,1998.7,2.41398]
[1743017846773,1.00048,1998.8,1998.7,1.4135]
[1743017847376,1.00048,1998.8,1998.5,1.3818]
[1743017847575,1.00063,1998.5,1998.4,0.00752125]
[1743017847780,1.00063,1998.5,1998.4,1.00820125]
[1743017848180,1.00063,1998.5,1998.4,2.41460125]
[1743017848682,1.00063,1998.5,1998.4,1.41392125]
[1743017848874,1.00063,1998.5,1998.4,2.41460125]
[1743017849181,1.00063,1998.5,1998.4,1.41392125]
[1743017849382,1.00063,1998.5,1998.4,0.00752125]
[1743017850985,7.65743,1998.5,1998.4,0.00752125]
[1743017856886,1.00078,1998.2,1998.1,1.4015]
[1743017857086,1.00083,1998.1,1998.0,0.6643]
[1743017857276,1.69633,1998.1,1998.0,2.048]
[1743017858381,1.00088,1998.0,1997.9,0.00752125]
[1743017858879,1.69638,1998.0,1997.9,1.39122125]
[1743017861084,1.69638,1998.0,1997.9,0.00752125]
[1743017862082,1.69638,1998.0,1997.9,1.33912125]
[1743017864084,1.431,1998.1,1997.9,4.54692125]
[1743017864280,1.00088,1998.0,1997.9,4.54692125]
[1743017864487,1.00088,1998.0,1997.9,5.54784125]
[1743017864993,1.00086,1998.1,1998.0,1.00086]
[1743017865287,1.00086,1998.1,1998.0,1.3151]
[1743017866587,0.00752125,1998.2,1998.0,1.3151]
[1743017866588,1.00835125,1998.2,1998.1,1.00083]
[1743017866891,1.00835125,1998.2,1998.1,0.693]
[1743017867286,1.00835125,1998.2,1998.1,2.049]
[1743017867686,1.00835125,1998.2,1998.1,5.2568]
[1743017868088,1.00835125,1998.2,1998.1,2.049]
[1743017870989,1.00835125,1998.2,1998.1,1.356]
[1743017871192,1.68135125,1998.2,1998.1,1.356]
[1743017871900,1.00088,1998.0,1997.9,0.00752125]
[1743017872106,1.00088,1998.0,1997.9,1.36992125]
[1743017875098,1.00088,1998.0,1997.9,5.57865125]
[1743017875900,1.00086,1998.1,1998.0,1.00083]
[1743017876102,1.00086,1998.1,1998.0,2.31838]
[1743017876406,1.00086,1998.1,1998.0,1.3175]
[1743017876707,1.00086,1998.1,1998.0,2.31838]
[1743017876905,1.00086,1998.1,1998.0,1.3175]
[1743017877206,1.00086,1998.1,1998.0,2.31838]
[1743017877406,1.00086,1998.1,1998.0,1.3175]
[1743017880814,1.00086,1998.1,1998.0,2.31838]
[1743017881013,1.00834125,1998.2,1998.1,1.00083]
[1743017881210,0.00752125,1998.2,1998.1,6.30143]
[1743017883207,1.00073,1998.4,1998.3,1.00068]
[1743017883409,1.00073,1998.4,1998.3,4.20848]
[1743017883607,1.00073,1998.4,1998.3,3.2078]
[1743017883809,1.00073,1998.4,1998.3,4.5891]
[1743017884611,1.00073,1998.4,1998.3,5.58983]
[1743017887222,1.00073,1998.4,1998.3,2.38203]
[1743017887518,1.00073,1998.4,1998.3,5.58983]
[1743017888916,0.65273,1998.4,1998.3,5.58983]
[1743017891713,0.65273,1998.4,1998.3,4.5891]
[1743017892618,0.65273,1998.4,1998.3,5.58983]
[1743017896824,0.65273,1998.4,1998.3,4.5891]
[1743017897017,1.00073,1998.3,1998.2,0.6508]
[1743017897223,1.00078,1998.2,1998.1,3.2078]
[1743017897419,1.00078,1998.2,1998.1,4.6308]
[1743017897618,2.34498,1998.2,1998.1,4.6308]
[1743017898118,2.34498,1998.2,1998.1,3.2078]
[1743017898322,1.00083,1998.1,1998.0,2.0945]
[1743017898522,2.34503,1998.1,1998.0,2.0945]
[1743017898727,1.00088,1998.0,1997.9,3.21532125]
[1743017898925,3.02098,1998.0,1997.9,3.21532125]
[1743017899427,3.02098,1998.0,1997.9,4.63832125]
[1743017900121,1.00088,1998.0,1997.9,5.63925125]
[1743017900626,1.00085,1998.1,1998.0,1.00088]
[1743017900928,1.00085,1998.1,1998.0,3.09328]
[1743017902621,1.00085,1998.1,1998.0,6.30108]
[1743017903025,1.00085,1998.1,1998.0,5.3002]
[1743017903726,1.00085,1998.1,1998.0,6.30108]
[1743017904721,1.00085,1998.1,1998.0,5.3002]
[1743017905129,1.00085,1998.1,1998.0,2.0924]
[1743017905424,1.00088,1998.0,1997.9,0.00752125]
[1743017905625,1.70758,1998.0,1997.9,1.35982125]
[1743017906323,1.70758,1998.0,1997.9,0.00752125]
[1743017906526,1.00103,1997.7,1997.6,3.2078]
[1743017907023,1.00108,1997.6,1997.5,1.3523]
[1743017907323,2.30308,1997.6,1997.5,1.3523]
[1743017907529,1.00113,1997.5,1997.4,0.7086]
[1743017907723,1.00113,1997.5,1997.4,0.71612125]
[1743017907724,2.30313,1997.5,1997.4,0.71612125]
[1743017908028,2.30313,1997.5,1997.4,3.06960125]
[1743017908222,2.30313,1997.5,1997.4,2.06842125]
[1743017908622,2.30313,1997.5,1997.4,0.00752125]
[1743017909422,2.30313,1997.5,1997.4,1.44242125]
[1743017910431,2.30313,1997.5,1997.4,2.44360125]
[1743017910725,0.00752125,1997.7,1997.6,1.00108]
[1743017910925,0.00752125,1997.7,1997.6,4.20888]
[1743017911130,1.00855125,1997.7,1997.6,45.00888]
[1743017911333,1.00855125,1997.7,1997.6,46.31928]
[1743017911530,0.00752125,1997.7,1997.6,46.31928]
[1743017911736,1.00855125,1997.7,1997.6,46.31928]
[1743017912123,0.00752125,1997.7,1997.6,46.31928]
[1743017915931,1.00855125,1997.7,1997.6,46.31928]
[1743017917136,1.00855125,1997.7,1997.6,5.51928]
[1743017919033,1.00108,1997.6,1997.5,1.4349]
[1743017919229,1.00113,1997.5,1997.4,0.70282125]
[1743017919621,2.37253,1997.5,1997.4,0.00752125]
[1743017920934,2.37253,1997.5,1997.4,4.21650125]
[1743017920935,1.3714,1997.5,1997.4,4.21650125]
[1743017921238,0.00752125,1997.7,1997.6,1.00108]
[1743017921529,1.00855125,1997.7,1997.6,4.20888]
[1743017921735,1.00855125,1997.7,1997.6,4.5089]
[1743017922127,1.00855125,1997.7,1997.6,1.3011]
[1743017922529,2.43585125,1997.7,1997.6,1.3011]
[1743017922924,2.43585125,1997.7,1997.6,2.30218]
[1743017923326,0.00752125,1997.7,1997.6,2.30218]
[1743017923929,1.00855125,1997.7,1997.6,2.30218]
[1743017924333,0.00752125,1997.7,1997.6,2.30218]
[1743017925932,0.6526,1998.1,1997.9,1.00088]
[1743017926134,2.39221,1998.0,1997.9,1.00088]
[1743017926330,2.39221,1998.0,1997.9,4.20868]
[1743017926531,1.3913,1998.0,1997.9,4.20868]
[1743017926937,2.37793,1998.2,1998.1,1.00079]
[1743017927239,1.3771,1998.2,1998.1,4.20859]
[1743017927444,2.37788,1998.2,1998.1,4.20859]
[1743017928333,1.00087,1998.1,1998.0,3.2078]
[1743017928531,2.37797,1998.1,1998.0,4.20863]
[1743017928729,2.37797,1998.1,1998.0,3.2078]
[1743017928933,2.37797,1998.1,1998.0,1.00088]
[1743017929133,2.37797,1998.1,1998.0,4.20868]
[1743017929537,1.3771,1998.1,1998.0,4.20868]
[1743017930337,1.00077,1998.3,1998.0,3.2078]
[1743017930549,2.35927,1998.3,1998.2,3.2078]
[1743017930844,2.35923,1998.3,1998.2,4.20854]
[1743017932944,2.35923,1998.3,1998.2,1.00074]
[1743017934543,2.35923,1998.3,1998.2,4.20854]
[1743017935544,2.35923,1998.3,1998.2,1.00074]
[1743017935944,2.35923,1998.3,1998.2,4.20854]
[1743017937847,2.50197,1998.2,1997.9,4.20871]
[1743017938044,1.00088,1998.0,1997.9,4.20871]
[1743017941448,1.00088,1998.0,1997.9,5.57101]
[1743017942449,1.00088,1998.0,1997.9,6.23051]
[1743017943048,2.34986,1998.1,1998.0,1.00088]
[1743017943245,2.34986,1998.1,1998.0,1.338]
[1743017945250,1.00093,1997.9,1997.8,4.90835]
[1743017945449,1.00093,1997.9,1997.8,1.70058]
[1743017946055,1.65273,1997.9,1997.8,2.1255]
[1743017946243,1.65273,1997.9,1997.8,3.12648]
[1743017946649,0.6518,1997.9,1997.6,4.20885]
[1743017946844,1.00109,1997.7,1997.6,3.927]
[1743017947049,1.00109,1997.7,1997.6,0.7192]
[1743017947852,1.00109,1997.7,1997.6,3.02488]
[1743017948154,6.31056,1997.9,1997.6,3.02488]
[1743017948155,1.00086,1998.1,1998.0,1.00081]
[1743017948349,2.37436,1998.1,1998.0,1.00081]
[1743017948656,2.37436,1998.1,1998.0,3.69531]
[1743017950253,3.21855,1998.3,1998.0,2.6945]
[1743017950254,0.7167,1998.3,1998.0,2.6945]
[1743017950456,3.09097,1998.3,1998.2,1.00078]
[1743017950645,2.37427,1998.3,1998.2,1.00078]
[1743017950843,2.37427,1998.3,1998.2,1.3046]
[1743017951055,2.37427,1998.3,1998.2,2.30538]
[1743017952457,1.00072,1998.4,1998.3,1.00068]
[1743017952655,2.35365,1998.5,1998.4,1.00068]
[1743017952865,2.35365,1998.5,1998.4,3.07408]
[1743017954053,4.8173,1998.9,1998.7,1.00049]
[1743017954054,0.6847,1998.9,1998.7,1.00049]
[1743017954354,1.4216,1998.8,1998.7,4.20829]
[1743017954555,1.00053,1998.7,1998.6,0.00752125]
[1743017955653,2.42213,1998.7,1998.6,0.00752125]
[1743017957255,2.50153,1998.6,1998.3,3.2078]
[1743017957456,3.05647,1998.5,1998.4,1.00068]
[1743017958152,2.35677,1998.5,1998.4,4.20848]
[1743017958953,2.35677,1998.5,1998.4,1.00068]
[1743017959149,0.00752125,1998.6,1998.5,1.00063]
[1743017959150,1.00810125,1998.6,1998.5,1.00063]
[1743017959558,0.00752125,1998.6,1998.5,1.00063]
[1743017959760,1.00810125,1998.6,1998.5,1.00063]
[1743017960067,0.00752125,1998.6,1998.5,1.00063]
[1743017961162,1.00810125,1998.6,1998.5,1.00063]
[1743017961361,0.00752125,1998.6,1998.5,1.00063]
[1743017962161,1.00810125,1998.6,1998.5,1.00063]
[1743017962563,0.00752125,1998.6,1998.5,1.00063]
[1743017962763,1.00810125,1998.6,1998.5,1.00063]
[1743017963665,1.00810125,1998.6,1998.4,1.00064]
[1743017963666,1.00063,1998.5,1998.4,1.00064]
[1743017963866,2.42503,1998.5,1998.4,4.20844]
[1743017964670,1.00068,1998.4,1998.3,0.00752125]
[1743017964865,2.42508,1998.4,1998.3,0.00752125]
[1743017965063,4.8604,1998.4,1997.8,4.20875]
[1743017965268,4.8604,1998.4,1997.5,50.464]
[1743017965269,1.00103,1997.7,1997.5,3.2078]
[1743017965664,1.00103,1997.7,1997.5,4.20888]
[1743017965975,1.00103,1997.7,1997.6,1.00108]
[1743017966269,1.00108,1997.6,1997.5,1.00862125]
[1743017966468,1.00108,1997.6,1997.5,4.21642125]
[1743017967072,1.00108,1997.6,1997.5,1.00862125]
[1743017967368,1.00108,1997.6,1997.5,0.00752125]
[1743017967870,1.00108,1997.6,1997.5,1.00865125]
[1743017968375,1.00108,1997.6,1997.5,1.67635125]
[1743017968867,1.00108,1997.6,1997.5,0.67522125]
[1743017969069,1.00108,1997.6,1997.5,1.67635125]
[1743017969265,2.41776,1997.7,1997.6,1.00108]
[1743017969476,2.41776,1997.7,1997.6,4.20888]
[1743017969782,1.00108,1997.6,1997.5,0.67522125]
[1743017970082,2.36108,1997.6,1997.5,0.00752125]
[1743017972385,0.6714,1997.9,1997.5,5.71813125]
[1743017972585,1.00087,1998.1,1998.0,1.00085]
[1743017972786,3.17528,1998.3,1997.9,4.20869]
[1743017972787,1.00088,1998.0,1997.9,4.20869]
[1743017973178,6.61052,1998.4,1997.9,3.2078]
[1743017973381,1.00083,1998.1,1998.0,40.8]
[1743017973680,1.00083,1998.1,1998.0,41.80088]
[1743017974086,1.00083,1998.1,1998.0,1.00088]
[1743017974280,1.00083,1998.1,1998.0,2.41498]
[1743017976388,1.00093,1997.9,1997.8,3.2078]
[1743017976591,1.00093,1997.9,1997.8,4.20878]
[1743017977592,1.00098,1997.8,1997.7,2.3034]
[1743017977783,2.43878,1997.8,1997.7,5.5112]
[1743017977979,2.43878,1997.8,1997.7,3.2078]
[1743017978181,1.00108,1997.6,1997.5,1.00865125]
[1743017978387,1.00108,1997.6,1997.5,2.38705125]
[1743017978691,1.00102,1997.8,1997.7,1.00103]
[1743017978994,1.00102,1997.8,1997.7,4.20883]
[1743017979585,1.00102,1997.8,1997.7,5.58723]
[1743017980892,1.00102,1997.8,1997.7,4.5862]
[1743017981087,1.00102,1997.8,1997.7,5.58723]
[1743017981683,1.00102,1997.8,1997.7,4.5862]
[1743017982581,1.00102,1997.8,1997.7,5.58723]
[1743017983192,1.00102,1997.8,1997.7,4.5862]
[1743017983481,1.4396,1997.9,1997.5,0.00752125]
[1743017983685,1.00108,1997.6,1997.5,0.00752125]
[1743017984181,1.67618,1997.6,1997.5,0.00752125]
[1743017984393,3.11158,1997.6,1997.5,0.00752125]
[1743017984989,3.11158,1997.6,1997.5,1.00865125]
[1743017985194,3.11158,1997.6,1997.5,0.00752125]
[1743017985587,3.11158,1997.6,1997.5,1.40732125]
[1743017987789,3.11158,1997.6,1997.5,0.00752125]
[1743017988795,6.54758,1997.6,1997.5,0.00752125]
[1743017992299,6.54758,1997.6,1997.5,1.34712125]
[1743017995200,6.54758,1997.6,1997.5,0.00752125]
[1743017995596,6.54758,1997.6,1997.5,0.66652125]
[1743017995791,6.54758,1997.6,1997.5,1.96412125]
[1743017995993,6.54758,1997.6,1997.5,0.00752125]
[1743017998496,2.50282,1997.5,1996.5,3.2078]
[1743017998698,2.50282,1997.5,1996.7,2.0393]
[1743017998699,1.00148,1996.8,1996.7,2.0393]
[1743017999007,1.00147,1996.9,1996.8,1.00145]
[1743017999198,2.42237,1996.9,1996.8,1.3561]
[1743018000305,2.42237,1996.9,1996.8,2.35758]
[1743018000503,2.42237,1996.9,1996.8,1.3561]
[1743018000899,2.42237,1996.9,1996.8,2.35758]
[1743018001104,2.42237,1996.9,1996.8,1.3561]
[1743018002006,2.42237,1996.9,1996.8,2.35758]
[1743018002506,1.00147,1996.9,1996.8,2.35758]
[1743018008006,1.00147,1996.9,1996.8,1.3561]
[1743018008206,1.70297,1996.9,1996.8,1.3561]
[1743018008409,3.13217,1996.9,1996.8,1.3561]
[1743018010414,1.00148,1996.8,1996.7,0.69072125]
[1743018010614,2.42328,1996.8,1996.7,0.69072125]
[1743018012013,2.42328,1996.8,1996.7,2.02542125]
[1743018014214,1.00147,1996.9,1996.8,1.00148]
[1743018014417,2.38472125,1997.0,1996.9,1.00143]
[1743018014618,2.38472125,1997.0,1996.9,1.66943]
[1743018014815,0.00752125,1997.0,1996.9,4.87723]
[1743018015216,1.00119,1997.4,1997.3,1.00123]
[1743018015620,2.43517,1997.5,1997.4,1.00118]
[1743018016011,1.00118,1997.4,1997.3,3.06939]
[1743018019016,2.44269125,1997.5,1997.4,1.00118]
[1743018019323,2.44269125,1997.5,1997.4,1.4376]
[1743018019523,2.44269125,1997.5,1997.4,2.43878]
[1743018019824,2.44269125,1997.5,1997.4,1.4376]
[1743018020015,2.44269125,1997.5,1997.4,2.43878]
[1743018020523,2.44269125,1997.5,1997.4,1.4376]
[1743018020917,2.44269125,1997.5,1997.4,2.43878]
[1743018021115,2.44269125,1997.5,1997.4,1.4376]
[1743018021721,2.44269125,1997.5,1997.4,2.43878]
[1743018023227,2.44269125,1997.5,1997.4,1.4376]
[1743018024023,2.44269125,1997.5,1997.4,2.43878]
[1743018024421,2.44269125,1997.5,1997.4,1.4376]
[1743018025026,2.44269125,1997.5,1997.4,2.43878]
[1743018025226,2.44269125,1997.5,1997.4,1.4376]
[1743018025421,2.44269125,1997.5,1997.4,2.43878]
[1743018025917,2.44269125,1997.5,1997.4,1.4376]
[1743018029526,1.00123,1997.3,1997.2,4.88604]
[1743018030134,1.00128,1997.2,1997.1,1.3136]
[1743018030328,2.38008,1997.2,1997.1,1.3136]
[1743018030634,4.5866,1997.2,1996.8,1.69685]
[1743018030930,1.00148,1996.8,1996.7,0.67632125]
[1743018031120,1.00148,1996.8,1996.7,0.00752125]
[1743018031427,1.00163,1996.5,1996.4,2.0432]
[1743018031818,1.3788,1996.7,1996.6,1.00158]
[1743018032227,2.38033,1996.7,1996.6,1.00158]
[1743018032419,2.38033,1996.7,1996.6,2.38058]
[1743018033625,2.38033,1996.7,1996.6,1.379]
[1743018033819,2.38033,1996.7,1996.6,2.38058]
[1743018034024,2.38033,1996.7,1996.6,1.379]
[1743018034230,1.00158,1996.6,1996.5,0.00752125]
[1743018034531,2.37618,1996.6,1996.5,0.00752125]
[1743018035029,2.37618,1996.6,1996.5,1.44002125]
[1743018036025,2.37618,1996.6,1996.5,2.44165125]
[1743018036233,2.37618,1996.6,1996.5,1.44002125]
[1743018037133,5.58398,1996.6,1996.5,0.00752125]
[1743018037435,6.29378,1996.6,1996.5,0.00752125]
[1743018038734,2.37618,1996.6,1996.5,0.00752125]
[1743018038928,1.3746,1996.6,1996.5,1.00915125]
[1743018039133,2.37618,1996.6,1996.5,0.00752125]
[1743018039646,2.37618,1996.6,1996.5,2.02872125]
[1743018041634,1.00156,1996.7,1996.5,2.02872125]
[1743018041836,1.00156,1996.7,1996.6,2.37248]
[1743018041837,1.3998,1996.7,1996.6,2.37248]
[1743018042030,1.00151,1996.8,1996.7,1.00153]
[1743018042230,3.9021,1997.1,1996.7,1.00153]
[1743018042231,3.2078,1997.1,1996.7,4.5925]
[1743018042431,1.00147,1996.9,1996.8,1.00146]
[1743018042737,1.00147,1996.9,1996.8,2.38616]
[1743018042930,2.3753,1997.0,1996.9,1.00143]
[1743018043131,2.3753,1997.0,1996.9,1.3847]
[1743018043830,2.3753,1997.0,1996.9,2.38613]
[1743018044230,2.3753,1997.0,1996.9,1.3847]
[1743018045035,1.00152,1996.8,1996.7,1.00153]
[1743018045239,1.00152,1996.8,1996.7,2.43443]
[1743018045640,2.34027,1996.9,1996.8,1.00148]
[1743018045937,2.34027,1996.9,1996.8,2.43438]
[1743018046126,2.50321,1997.2,1996.9,1.00142]
[1743018046332,1.00142,1997.0,1996.9,2.43432]
[1743018047133,1.00142,1997.0,1996.9,1.4329]
[1743018049737,5.54796,1997.1,1997.0,1.00138]
[1743018049935,1.00136,1997.1,1997.0,1.00138]
[1743018050140,1.00136,1997.1,1997.0,1.68548]
[1743018050343,1.00136,1997.1,1997.0,3.05508]
[1743018050842,1.00136,1997.1,1997.0,2.0537]
[1743018051743,1.00136,1997.1,1997.0,1.3696]
[1743018053234,1.00148,1996.8,1996.7,4.43353]
[1743018053438,1.00148,1996.8,1996.7,2.36533]
[1743018053645,2.33245,1996.9,1996.8,1.00148]
[1743018053938,1.00142,1997.0,1996.9,1.00143]
[1743018054244,5.54016,1997.1,1997.0,1.00138]
[1743018054433,4.20916,1997.1,1997.0,1.00138]
[1743018054634,1.00138,1997.0,1996.9,2.37249]
[1743018054844,1.00138,1997.0,1996.9,1.00139]
[1743018055143,1.4114,1997.2,1996.8,1.00143]
[1743018055144,1.00143,1996.9,1996.8,1.00143]
[1743018055345,1.00145,1996.9,1996.8,1.00143]
[1743018055543,1.00151,1996.8,1996.6,3.8765]
[1743018055843,1.00151,1996.8,1996.7,1.00149]
[1743018058344,1.00151,1996.8,1996.7,1.67099]
[1743018060141,1.00135,1997.2,1997.1,1.0013]
[1743018060341,1.00127,1997.3,1997.2,1.00123]
[1743018060845,2.39707,1997.3,1997.2,1.00123]
[1743018061243,0.00752125,1997.5,1997.2,2.50311]
[1743018061444,1.00868125,1997.5,1997.4,1.00118]
[1743018061840,1.00868125,1997.5,1997.4,1.71348]
[1743018062841,1.00865125,1997.5,1997.4,1.71348]
[1743018063045,1.00865125,1997.5,1997.4,0.7123]
[1743018063342,1.00128,1997.3,1997.2,1.00126]
[1743018063846,2.30308,1997.3,1997.2,1.00126]
[1743018064444,1.3018,1997.3,1997.2,1.00126]
[1743018064647,1.0012,1997.4,1997.3,1.00123]
[1743018064846,2.31049125,1997.5,1997.4,1.00118]
[1743018066046,1.00124,1997.4,1997.3,1.00119]
[1743018066248,1.00128,1997.3,1997.2,1.00124]
[1743018066950,2.41788,1997.3,1997.2,1.00124]
[1743018067350,1.4166,1997.3,1997.2,1.00124]
[1743018067550,1.00121,1997.4,1997.3,1.00123]
[1743018067745,2.41781,1997.4,1997.3,1.00123]
[1743018069140,1.00121,1997.4,1997.3,1.00123]
[1743018070451,4.1225,1997.8,1997.3,1.00123]
[1743018070452,5.7099,1998.1,1997.4,1.00118]
[1743018070647,1.00093,1997.9,1997.8,1.00094]
[1743018070847,1.00093,1998.0,1997.9,1.0009]
[1743018071052,1.00093,1998.0,1997.9,1.7195]
[1743018072045,1.00093,1998.0,1997.9,3.0814]
[1743018072454,1.00093,1998.0,1997.9,2.0805]
[1743018072639,1.00093,1998.0,1997.9,3.08143]
[1743018073348,1.37562125,1998.1,1998.0,1.00088]
[1743018073551,0.00752125,1998.1,1998.0,2.97948]
[1743018073853,0.00752125,1998.1,1998.0,6.18728]
[1743018074952,1.00835125,1998.1,1998.0,6.18728]
[1743018075253,0.00752125,1998.1,1998.0,2.97948]
[1743018075445,1.35932125,1998.1,1998.0,6.18728]
[1743018075645,1.35932125,1998.1,1998.0,2.97948]
[1743018076652,0.00752125,1998.1,1998.0,2.97948]
[1743018077448,1.00835125,1998.1,1998.0,2.97948]
[1743018077655,0.00752125,1998.1,1998.0,2.97948]
[1743018078344,1.37142125,1998.1,1998.0,2.97948]
[1743018078550,0.00752125,1998.1,1998.0,2.97948]
[1743018079052,1.0006,1998.6,1998.5,1.00059]
[1743018079247,1.00065,1998.5,1998.4,1.00063]
[1743018079454,1.3965,1998.5,1998.4,2.39733]
[1743018079758,1.00053,1998.7,1998.6,1.00051]
[1743018079958,1.3965,1998.8,1998.6,1.00056]
[1743018080161,1.40402125,1998.8,1998.7,1.3257]
[1743018080453,2.40450125,1998.8,1998.7,1.3257]
[1743018081152,2.40450125,1998.8,1998.7,2.32623]
[1743018081456,2.40450125,1998.8,1998.7,1.3257]
[1743018082657,1.40402125,1998.8,1998.7,2.32623]
[1743018084359,2.40450125,1998.8,1998.7,2.32623]
[1743018085557,1.00058,1998.6,1998.5,3.2078]
[1743018086157,1.00058,1998.6,1998.5,4.20843]
[1743018086353,1.00058,1998.6,1998.5,5.53913]
[1743018086558,2.35878,1998.6,1998.5,5.53913]
[1743018088156,2.35878,1998.6,1998.5,4.5385]
[1743018088361,2.35878,1998.6,1998.5,5.53913]
[1743018089862,2.35878,1998.6,1998.5,2.33133]
[1743018090566,0.00752125,1998.8,1998.7,1.00053]
[1743018090861,1.38812125,1998.8,1998.7,1.00053]
[1743018091766,2.38865125,1998.8,1998.7,1.00053]
[1743018091953,1.00053,1998.7,1998.6,2.43353]
[1743018092157,2.42583,1998.7,1998.6,2.43353]
[1743018093169,1.4253,1998.7,1998.6,2.43353]
[1743018093359,2.42583,1998.7,1998.6,2.43353]
[1743018096565,2.42583,1998.7,1998.6,2.43358]
[1743018096764,2.42583,1998.7,1998.6,1.433]
[1743018097063,2.42583,1998.7,1998.6,2.43358]
[1743018098760,1.4253,1998.7,1998.6,2.43358]
[1743018102156,2.42583,1998.7,1998.6,2.43358]
[1743018102354,0.00752125,1998.8,1998.6,2.43358]
[1743018102566,1.41662125,1998.8,1998.7,2.33123]
[1743018102968,2.41710125,1998.8,1998.7,2.33123]
[1743018103366,1.41662125,1998.8,1998.7,2.33123]
[1743018104767,2.41710125,1998.8,1998.7,2.33123]
[1743018104962,1.41662125,1998.8,1998.7,2.33123]
[1743018105365,2.41710125,1998.8,1998.7,2.33123]
[1743018105667,1.41662125,1998.8,1998.7,2.33123]
[1743018105969,1.41662125,1998.8,1998.7,5.53903]
[1743018106367,0.00752125,1998.8,1998.7,5.53903]
[1743018106564,1.3992,1999.1,1999.0,1.00038]
[1743018106759,1.00024,1999.3,1999.2,1.00023]
[1743018107066,2.39944,1999.3,1999.2,1.00023]
[1743018108566,1.3992,1999.3,1999.2,1.00023]
[1743018108769,1.0002,1999.4,1999.3,1.00023]
[1743018109073,1.0002,1999.4,1999.3,2.34663]
[1743018109469,2.4383,1999.4,1999.3,2.34663]
[1743018113879,2.4383,1999.4,1999.3,1.3464]